{"text_format":"1","workbook":"xlsx","n_sheets":3,"sheets":["Kalkulation","Datenblatt","hilf"],"not_rendered":{"charts":0,"images":2,"macros":1,"external_links":0,"defined_names":5,"comments":2,"pivot_tables":0},"unopened":[],"bounds":{"document_bytes":16777216,"sheet_cells":100000,"rows_first":2000,"rows_last":500,"rows_between":2000,"halvings":0,"cell_chars":16384,"cell_head_chars":4096},"cells_cut":0,"cells_raw":0,"read":"whole","date_system":"1900"}

{"sheet":"Kalkulation","index":0,"n_rows":117,"n_cols":30,"rows_kept":117,"cut":false,"hidden":false,"merged":[[116,1,116,16],[83,1,83,14],[84,1,84,14],[86,1,86,14],[7,6,7,8],[37,2,41,2],[79,1,79,14],[80,1,80,14],[115,1,115,16]]}
[null,"Kalkulationsblatt zur Ermittlung von Kenndaten und Preisen für Energieholzsortimente",null,null,null,null,null,null,null,null,null,null,null,null,null,null,"Vergleich"]
[null,"Version 1.9"]
[null,"Dieses Berechnungsblatt stellt keinen Heizkostenvergleich auf Vollkostenbasis (CAPEX und OPEX) dar. Es werden ausschließlich brennstoffbezogene Kosten berechnet und verglichen."]
[null,"Bitte verwenden Sie die hellroten Zellen um die Variablen zu ändern."]
[null,"Für die Ausführung der Berechnungsroutinen müssen Makros aktiviert sein => Excel-Einstellung unter Extras | Makro | Sicherheit | auf \"Mittel\" stellen."]
[null,"Ziehen Sie den Mauszeiger auf die Kommentare (rotes Dreieck in der jeweiligen Zelle) um zusätzliche Informationen zu den einzelnen Kennwerten zu erhalten."]
[]
[null,"Kennwerte der Biomasse-Heizungsanlage (Brennstoffmix in grün markierte Spalten definieren)",null,null,null,null,"Holzarten",null,null,null,"Rinde",null,"Presslinge",null,"Spitzenlast-Brennstoff",null,"Haushalt oder anderer Verbraucher"]
[]
[null,"Grundeingabe","Holz- bzw. Brennstoffart","Auswahl im Drop-Down-Menü",null,null,"Nadelholz","Laubholz","NH & LH",null,"Rinde NH",null,"Pellets, Holz-",null,"Heizöl Extra Leicht",null,"Heizöl Extra Leicht",null,"NH & LH","Briketts, Holz-","Feste Holzmasse","Rinde NH","Erdgas",null,{"$f":"W10","v":"Erdgas"},{"$f":"W11","v":"Heizöl Extra Leicht"},{"$f":"M10","v":"Pellets, Holz-"},1]
[null,null,"Brennstoffgruppe","Zuordnung zu Gruppen",null,null,{"$f":"VLOOKUP(G10,Datenblatt!B6:P82,5,FALSE)","v":"NH Mischung"},{"$f":"VLOOKUP(H10,Datenblatt!B6:P82,5,FALSE)","v":"LH Mischung"},{"$f":"VLOOKUP(I10,Datenblatt!B6:P82,5,FALSE)","v":"NH & LH Mischung"},null,{"$f":"VLOOKUP(K10,Datenblatt!B6:P82,5,FALSE)","v":"Rinde NH"},null,{"$f":"VLOOKUP(M10,Datenblatt!B6:P82,5,FALSE)","v":"Presslinge"},null,{"$f":"HLOOKUP($O$10,$Y$10:$Z$29,AB11)","v":"Fossile Energie"},null,{"$f":"HLOOKUP($Q$10,$Y$10:$AA$29,AB11)","v":"Fossile Energie"},null,"Nadelholz","Briketts, Rinden-","Scheitholz (1 m) gespalten","Rinde LH","Heizöl Extra Leicht",null,"Fossile Energie","Fossile Energie",{"$f":"M11","v":"Presslinge"},2]
[null,null,"Sortiment","Auswahl im Drop-Down-Menü",null,null,"Holzhackgut P45","Holzhackgut P45","Holzhackgut P45",null,"Rinde (geschüttet)",null,null,null,null,null,null,null,"Douglasie","Pellets, Holz-","Stückholz (geschlichtet)",null,{"$f":"AA10","v":"Pellets, Holz-"},null,null,null,null,3]
[null,null,"Umrechnungsfaktor","1 fm = x rm bzw.  x srm",null,null,{"$f":"VLOOKUP(G12,Datenblatt!T6:W25,2,FALSE)","v":2.5},{"$f":"VLOOKUP(H12,Datenblatt!T6:W18,2,FALSE)","v":2.5},{"$f":"VLOOKUP(I12,Datenblatt!T6:W18,2,FALSE)","v":2.5},null,{"$f":"VLOOKUP(K12,Datenblatt!T19:W20,2,FALSE)","v":3.3332999999999999},null,1,null,1,null,1,null,"Eibe","Pellets, Rinden-","Stückholz (geschüttet)",null,null,null,1,1,{"$f":"M13","v":1},4]
[null,null,"Einheit","Übliches Handelsmaß",null,null,{"$f":"VLOOKUP(G12,Datenblatt!T6:W18,3,FALSE)","v":"srm"},{"$f":"VLOOKUP(H12,Datenblatt!T6:W18,3,FALSE)","v":"srm"},{"$f":"VLOOKUP(I12,Datenblatt!T6:W18,3,FALSE)","v":"srm"},null,{"$f":"VLOOKUP(K12,Datenblatt!T19:W20,3,FALSE)","v":"srm"},null,{"$f":"VLOOKUP(M10,Datenblatt!T21:W24,3,FALSE)","v":"t-lutro"},null,{"$f":"HLOOKUP($O$10,$Y$10:$Z$29,AB14)","v":"Liter"},null,{"$f":"HLOOKUP($Q$10,$Y$10:$AA$35,AB14)","v":"Liter"},null,"Fichte",null,"Holzhackgut P16",null,null,null,"m³","Liter",{"$f":"M14","v":"t-lutro"},5]
[null,null,null,null,null,null,null,null,null,null,null,null,null,null,null,null,null,null,"Fichte, Sitka-",null,"Holzhackgut P31",null,null,null,null,null,null,6]
[null,"Wasseranteil","Wassergehalt (H2O)","% (Gewicht, FS)",null,null,45,45,45,null,50,null,8,null,{"$f":"HLOOKUP($O$10,$Y$10:$Z$29,AB16)","v":1.9999999999999998E-4},null,{"$f":"HLOOKUP($Q$10,$Y$10:$AA$29,AB16)","v":1.9999999999999998E-4},null,"Hemlock",null,"Holzhackgut P45",null,null,null,{"$f":"21*10^-6","v":2.0999999999999999E-5},{"$f":"200*10^-6","v":1.9999999999999998E-4},{"$f":"M16","v":8},7]
[null,null,"Wasserstoffgehalt (H)","% (Gewicht, TS)",null,null,{"$f":"VLOOKUP(G10,Datenblatt!B6:P82,7,FALSE)","v":6.2},{"$f":"VLOOKUP(H10,Datenblatt!B6:P82,7,FALSE)","v":6},{"$f":"VLOOKUP(I10,Datenblatt!B6:P82,7,FALSE)","v":6.17},null,{"$f":"VLOOKUP(K10,Datenblatt!B6:P82,7,FALSE)","v":6.2},null,{"$f":"VLOOKUP(M10,Datenblatt!B6:P82,7,FALSE)","v":6.2},null,{"$f":"HLOOKUP($O$10,$Y$10:$Z$29,AB17)","v":14},null,{"$f":"HLOOKUP($Q$10,$Y$10:$AA$29,AB17)","v":14},null,"Kiefer",null,"Waldhackgut C1 ",null,null,null,25,14,{"$f":"M17","v":6.2},8]
[null,null,null,null,null,null,null,null,null,null,null,null,null,null,null,null,null,null,"Kiefer, Radiata-",null,"Waldhackgut C2",null,null,null,null,null,null,9]
[null,"Brennwert (Ho)","Ho der Trockensubstanz (TS)","MJ/kg TS",null,null,{"$f":"VLOOKUP(G10,Datenblatt!B6:P82,8,FALSE)","v":20.3669431},{"$f":"VLOOKUP(H10,Datenblatt!B6:P82,8,FALSE)","v":19.322848199999999},{"$f":"VLOOKUP(I10,Datenblatt!B6:P82,8,FALSE)","v":20.206035400000001},null,{"$f":"VLOOKUP(K10,Datenblatt!B6:P82,8,FALSE)","v":20.3669431},null,{"$f":"VLOOKUP(M10,Datenblatt!B6:P82,8,FALSE)","v":20.3669431},null,{"$f":"HLOOKUP($O$10,$Y$10:$Z$29,AB19)","v":46.015171800000005},null,{"$f":"HLOOKUP($Q$10,$Y$10:$AA$29,AB19)","v":46.015171800000005},null,"Kiefer, Schwarz-",null,"Waldhackgut C3",null,null,null,53.952254641909825,46.015171800000005,{"$f":"VLOOKUP(M10,Datenblatt!B6:P82,8,FALSE)","v":20.3669431},10]
[null,null,"Ho der TS","kWh/kg TS",null,null,{"$f":"G19/3.6","v":5.6574841944444447},{"$f":"H19/3.6","v":5.3674578333333329},{"$f":"I19/3.6","v":5.612787611111111},null,{"$f":"K19/3.6","v":5.6574841944444447},null,{"$f":"M19/3.6","v":5.6574841944444447},null,{"$f":"O19/3.6","v":12.781992166666667},null,{"$f":"Q19/3.6","v":12.781992166666667},null,"Kiefer, Weiß-",null,"Waldhackgut C4",null,null,{"$f":"Y20*Y28*10^-3","v":11.300000000000002},{"$f":"Y19/3.6","v":14.986737400530506},{"$f":"Z19/3.6","v":12.781992166666667},{"$f":"AA19/3.6","v":5.6574841944444447},11]
[null,"Heizwert (Hu)","Hu der TS ","MJ/kg TS",null,null,{"$f":"G22*3.6","v":18.99999996},18,18.845706501000002,null,18.99999996,null,{"$f":"M22*3.6","v":18.99999996},null,{"$f":"O22*3.6","v":42.928526000000005},null,42.928526000000005,null,"Kiefer, Weymouths-",null,"Sägespäne",null,null,null,{"$f":"(Y19-2.441*(9*Y17/100-Y16))","v":48.460055902909822},{"$f":"(Z19-2.441*(9*Z17/100-Z16))","v":42.940000000000005},{"$f":"AA22*3.6","v":38.532865099999995},12]
[null,null,"Hu der TS","kWh/kg TS",null,null,{"$f":"(G19*(1-0/100)-2.447*0/100-G17/100/2*18.02*2.447*(1-0/100))/3.6","v":5.2777777666666665},{"$f":"(H19*(1-0/100)-2.447*0/100-H17/100/2*18.02*2.447*(1-0/100))/3.6","v":5},{"$f":"(I19*(1-0/100)-2.447*0/100-I17/100/2*18.02*2.447*(1-0/100))/3.6","v":5.2349184725000004},null,{"$f":"(K19*(1-0/100)-2.447*0/100-K17/100/2*18.02*2.447*(1-0/100))/3.6","v":5.2777777666666665},null,{"$f":"(M19*(1-0/100)-2.447*0/100-M17/100/2*18.02*2.447*(1-0/100))/3.6","v":5.2777777666666665},null,{"$f":"(O19*(1-0/100)-2.447*0/100-O17/100/2*18.02*2.447*(1-0/100))/3.6","v":11.924590555555557},null,{"$f":"(Q19*(1-0/100)-2.447*0/100-Q17/100/2*18.02*2.447*(1-0/100))/3.6","v":11.924590555555557},null,"Kiefer, Zirbel-",null,"Hobelspäne",null,null,null,{"$f":"Y21/3.6","v":13.461126639697172},{"$f":"Z21/3.6","v":11.927777777777779},{"$f":"(AA19-2.441*(9*AA17/100-AA16))/3.6","v":10.703573638888887},13,11.927777777777779,{"$f":"Z22-AC22","v":0}]
[null,null,"Hu der Frischsubstanz (FS)","MJ/kg FS",null,null,{"$f":"G24*3.6","v":9.3488499780000005},8.7988499999999998,9.2639885755500018,null,8.2764999800000005,null,17.284239963200001,null,{"$f":"O24*3.6","v":42.928435248948006},null,42.928435248948006,null,"Lärche",null,"Feste Rindenmasse",null,null,null,{"$f":"Y24*3.6","v":48.459993952698852},{"$f":"Z24*3.6","v":42.939421038976413},{"$f":"AA24*3.6","v":17.284239963200001},14]
[null,null,"Hu der FS ","kWh/kg FS",null,null,{"$f":"(G19*(1-G16/100)-2.447*G16/100-G17/100/2*18.02*2.447*(1-G16/100))/3.6","v":2.5969027716666666},2.4441250000000001,2.5733301598750002,null,2.2990277722222223,null,{"$f":"(M19*(1-M16/100)-2.447*M16/100-M17/100/2*18.02*2.447*(1-M16/100))/3.6","v":4.801177767555556},null,{"$f":"(O19*(1-O16/100)-2.447*O16/100-O17/100/2*18.02*2.447*(1-O16/100))/3.6","v":11.924565346930001},null,{"$f":"(Q19*(1-Q16/100)-2.447*Q16/100-Q17/100/2*18.02*2.447*(1-Q16/100))/3.6","v":11.924565346930001},null,"Redwood",null,"Rinde (geschüttet)",null,null,null,{"$f":"(Y19*(1-Y16/100)-2.441*Y16/100-Y17/100*9*2.441*(1-Y16/100))/3.6","v":13.461109431305236},{"$f":"(Z19*(1-Z16/100)-2.441*Z16/100-Z17/100*9*2.441*(1-Z16/100))/3.6","v":11.927616955271226},{"$f":"(AA19*(1-AA16/100)-2.447*AA16/100-AA17/100/2*18.02*2.447*(1-AA16/100))/3.6","v":4.801177767555556},15]
[null,null,"Hu der FS","MJ/m³ FS",null,null,{"$f":"G26*3.6","v":2671.6293571675851},{"$f":"H26*3.6","v":3464.7631592727275},2806.651666079812,null,1951.2954247390273,null,{"$f":"M26*3.6","v":11272.33041078261},null,{"$f":"O26*3.6","v":35931.172165713811},null,35931.172165713811,null,"Riesenlebensbaum",null,null,null,null,null,{"$f":"Y26*3.6","v":36538.843113491988},{"$f":"Z26*3.6","v":35940.367290357848},{"$f":"AA26*3.6","v":11272.33041078261},16]
[null,null,"Hu der FS","kWh/m³ FS",null,null,{"$f":"G24*G30","v":742.11926587988478},{"$f":"H24*H30","v":962.43421090909101},{"$f":"I24*I30","v":779.62546279994774},null,{"$f":"K24*K30","v":542.02650687195205},null,{"$f":"M24*M30","v":3131.2028918840583},null,{"$f":"O24*O30","v":9980.881157142725},null,{"$f":"Q24*Q30","v":9980.881157142725},null,"Tanne",null,null,null,null,null,{"$f":"Y24*Y30","v":10149.678642636663},{"$f":"Z24*Z30","v":9983.4353584327346},{"$f":"AA24*AA30","v":3131.2028918840583},17]
[null,null,null,null,null,null,null,null,null,null,null,null,null,null,null,null,null,null,"Zeder",null,null,null,null,null,null,null,null,18]
[null,"Dichte","Mittlere Darrdichte","kg/m³ (bei 0 % H2O)",null,null,{"$f":"VLOOKUP(G10,Datenblatt!B6:P82,9,FALSE)","v":445},{"$f":"VLOOKUP(H10,Datenblatt!B6:P82,9,FALSE)","v":640},{"$f":"VLOOKUP(I10,Datenblatt!B6:P82,9,FALSE)","v":475},null,{"$f":"VLOOKUP(K10,Datenblatt!B6:P82,9,FALSE)","v":445},null,{"$f":"VLOOKUP(M10,Datenblatt!B6:P82,9,FALSE)","v":600},null,{"$f":"HLOOKUP($O$10,$Y$10:$Z$29,AB28)","v":837},null,{"$f":"HLOOKUP($Q$10,$Y$10:$AA$29,AB28)","v":837},null,"Zypresse",null,null,null,null,null,754,837,{"$f":"M28","v":600},19]
[null,null,"Mittleres Schwindmaß","%",null,null,{"$f":"VLOOKUP(G10,Datenblatt!B6:P82,15,FALSE)","v":11.7},{"$f":"VLOOKUP(H10,Datenblatt!B6:P82,15,FALSE)","v":15.4},{"$f":"VLOOKUP(I10,Datenblatt!B6:P82,15,FALSE)","v":12.3},null,{"$f":"VLOOKUP(K10,Datenblatt!B6:P82,15,FALSE)","v":11.7},null,{"$f":"VLOOKUP(M10,Datenblatt!B6:P82,15,FALSE)","v":0},null,{"$f":"HLOOKUP($O$10,$Y$10:$Z$29,AB29)","v":0},null,{"$f":"HLOOKUP($Q$10,$Y$10:$AA$29,AB29)","v":0},null,"Laubholz",null,null,null,null,null,0,0,{"$f":"M29","v":0},20]
[null,null,"Roh- bzw. Lagerungsdichte","kg/m³ (bei x % H2O)",null,null,{"$f":"IF(G16>23,((G28-(G28*(G29/100)))/((100-G16)/100))/G13,((G28-G28*((G16*(G29/23))/100))/((100-G16)/100))/G13)","v":285.77090909090907},{"$f":"IF(H16>23,((H28-(H28*(H29/100)))/((100-H16)/100))/H13,((H28-H28*((H16*(H29/23))/100))/((100-H16)/100))/H13)","v":393.77454545454549},{"$f":"IF(I16>23,((I28-(I28*(I29/100)))/((100-I16)/100))/I13,((I28-I28*((I16*(I29/23))/100))/((100-I16)/100))/I13)","v":302.96363636363634},null,{"$f":"IF(K16>23,((K28-(K28*(K29/100)))/((100-K16)/100))/K13,((K28-K28*((K16*(K29/23))/100))/((100-K16)/100))/K13)","v":235.76335763357633},null,{"$f":"IF(M16>23,((M28-(M28*(M29/100)))/((100-M16)/100))/M13,((M28-M28*((M16*(M29/23))/100))/((100-M16)/100))/M13)","v":652.17391304347825},null,{"$f":"IF(O16>23,((O28-(O28*(O29/100)))/((100-O16)/100))/O13,((O28-O28*((O16*(O29/23))/100))/((100-O16)/100))/O13)","v":837.00167400334806},null,{"$f":"IF(Q16>23,((Q28-(Q28*(Q29/100)))/((100-Q16)/100))/Q13,((Q28-Q28*((Q16*(Q29/23))/100))/((100-Q16)/100))/Q13)","v":837.00167400334806},null,"Hartlaubholz",null,null,null,null,null,{"$f":"IF(Y16>23,((Y28-(Y28*(Y29/100)))/((100-Y16)/100))/Y13,((Y28-Y28*((Y16*(Y29/23))/100))/((100-Y16)/100))/Y13)","v":754.00015834003329},{"$f":"IF(Z16>23,((Z28-(Z28*(Z29/100)))/((100-Z16)/100))/Z13,((Z28-Z28*((Z16*(Z29/23))/100))/((100-Z16)/100))/Z13)","v":837.00167400334806},{"$f":"IF(AA16>23,((AA28-(AA28*(AA29/100)))/((100-AA16)/100))/AA13,((AA28-AA28*((AA16*(AA29/23))/100))/((100-AA16)/100))/AA13)","v":652.17391304347825},21]
[null,null," - Anteil der Holzsubstanz","kg/m³ (TS-Anteil an Frischsubstanz (FS))",null,null,{"$f":"G30*((100-G16)/100)","v":157.17400000000001},{"$f":"H30*((100-H16)/100)","v":216.57600000000005},{"$f":"I30*((100-I16)/100)","v":166.63},null,{"$f":"K30*((100-K16)/100)","v":117.88167881678817},null,{"$f":"M30*((100-M16)/100)","v":600},null,{"$f":"O30*((100-O16)/100)","v":837},null,{"$f":"Q30*((100-Q16)/100)","v":837},null,"Weichlaubholz",null,null,null,null,null,{"$f":"Y30*((100-Y16)/100)","v":754},{"$f":"Z30*((100-Z16)/100)","v":837},{"$f":"AA30*((100-AA16)/100)","v":600},22]
[null,null," - Anteil des Wassers","kg/m³ (H2O-Anteil an Frischsubstanz)",null,null,{"$f":"G30*G16/100","v":128.59690909090909},{"$f":"H30*H16/100","v":177.19854545454547},{"$f":"I30*I16/100","v":136.33363636363637},null,{"$f":"K30*K16/100","v":117.88167881678817},null,{"$f":"M30*M16/100","v":52.173913043478258},null,{"$f":"O30*O16/100","v":1.674003348006696E-3},null,{"$f":"Q30*Q16/100","v":1.674003348006696E-3},null,"Ahorn",null,null,null,null,null,{"$f":"Y30*Y16/100","v":1.5834003325140698E-4},{"$f":"Z30*Z16/100","v":1.674003348006696E-3},{"$f":"AA30*AA16/100","v":52.173913043478258},23]
[null,null,"Verhältniszahl m³ pro t FS","m³/t FS",null,null,{"$f":"1000/G30","v":3.4993065010752415},{"$f":"1000/H30","v":2.5395242316784867},{"$f":"1000/I30","v":3.3007261597551465},null,{"$f":"1000/K30","v":4.241541221830583},null,{"$f":"1000/M30","v":1.5333333333333334},null,{"$f":"1000/O30","v":1.1947407407407407},null,{"$f":"1000/Q30","v":1.1947407407407407},null,"Ahorn, Berg-",null,null,null,null,null,{"$f":"1000/Y30","v":1.3262596684350132},{"$f":"1000/Z30","v":1.1947407407407407},{"$f":"1000/AA30","v":1.5333333333333334},24]
[null,null,null,null,null,null,null,null,null,null,null,null,null,null,null,null,null,null,"Ahorn, Feld-",null,null,null,null,null,null,null,null,25]
[null,"Aschenanfall","Aschengehalt (Schätzwert)","% (Gewicht, TS)",null,null,{"$f":"VLOOKUP(G12,Datenblatt!T6:W24,4,FALSE)","v":1.5},{"$f":"VLOOKUP(H12,Datenblatt!T6:W24,4,FALSE)","v":1.5},{"$f":"VLOOKUP(I12,Datenblatt!T6:W24,4,FALSE)","v":1.5},null,{"$f":"VLOOKUP(K12,Datenblatt!T6:W24,4,FALSE)","v":6},null,{"$f":"VLOOKUP(M10,Datenblatt!T6:W24,4,FALSE)","v":0.3},null,{"$f":"HLOOKUP($O$10,$Y$10:$Z$35,AB35)","v":0.01},null,{"$f":"HLOOKUP($Q$10,$Y$10:$AA$35,AB35)","v":0.01},null,"Ahorn, Spitz-",null,null,null,null,null,0,{"$f":"0.01","v":0.01},{"$f":"M35","v":0.3},26]
[null,null,"Aschendichte (Schätzwert)","kg/m³",null,null,700,700,700,null,700,null,700,null,700,null,700,null,"Birke"]
[null,null,null,null,null,null,null,null,null,0,null,null,null,null,null,null,null,null,"Birke, Hänge-"]
[null,"Preis pro Einheit","Geben Sie hier wahlweise in einem der Eingabefelder den Brennstoffpreis ein, es erfolgt eine sofortige Umrechnung in die weiteren Einheiten!","Euro/t TS (t-atro)",null,null,89.711186657575752,84.433409090909066,88.896860068409097,0,85.064027572222216,0,217.39130434782612,0,715.47535176650365,0,858.57042211980433,null,"Birke, Moor-"]
[null,"Makros aktivieren !",null,"Euro/t FS (t-lutro)",null,null,49.341152661666669,46.438374999999986,48.893273037625008,0,42.532013786111108,0,200.00000000000003,0,715.47392081580006,0,858.56870497896,null,"Birnbaum"]
[null,null,null,"Euro/m³ FS",null,null,14.10026605171781,18.286250007272724,14.812883793199008,0,10.027490377131111,0,130.43478260869566,0,598.85286942856351,0,718.62344331427619,null,"Buche, Rot-"]
[null,null,null,"Euro/MWh",null,null,19,18.999999999999993,19,null,18.499999999999996,null,41.656445497919329,null,60,null,72,null,"Buche, Weiß-"]
[null,null,null,"Euro/GJ",null,null,{"$f":"G41/3.6","v":5.2777777777777777},{"$f":"H41/3.6","v":5.2777777777777759},{"$f":"I41/3.6","v":5.2777777777777777},null,5.1388888888888875,null,11.571234860533147,null,16.666666666666668,null,{"$f":"Q41/3.6","v":20},null,"Buchsbaum"]
[null,null,null,null,null,null,null,null,null,null,null,null,null,null,null,null,null,null,"Eiche"]
[null,"Anlieferungskosten","Liefermenge","t FS pro Lieferung",null,null,11,15,12,null,9,null,23,null,null,null,null,null,"Eiche, Rot-"]
[null,null,null,"Liter  FS pro Lieferung",null,null,null,null,null,null,null,null,null,null,3000,null,3000,null,"Eiche, Stiel-"]
[null,null,"Lieferpauschale","Euro pro Lieferung",null,null,60,60,60,null,60,null,{"$f":"40/1.2","v":33.333333333333336},null,{"$f":"40/1.2","v":33.333333333333336},null,{"$f":"40/1.2","v":33.333333333333336},null,"Eiche, Trauben-"]
[null,null,"Anzahl Lieferungen pro Jahr","Anz",null,null,{"$f":"IF(G44=\"\",,G55/G44)","v":18.512385921674859},{"$f":"IF(H44=\"\",,H55/H44)","v":14.424344892664781},{"$f":"IF(I44=\"\",,I55/I44)","v":17.12513541329692},null,{"$f":"IF(K44=\"\",,K55/K44)","v":6.8154223734142869},null,{"$f":"IF(M44=\"\",,M55/M44)","v":0},null,{"$f":"IF(O45=\"\",,O53*10^3/O45)","v":1.1774144789328704},null,{"$f":"IF(Q45=\"\",,Q53*10^3/Q45)","v":0.94297933796625877},null,"Eiche, Zerr-"]
[null,null,null,null,null,null,null,null,null,null,null,null,null,null,null,null,null,null,"Elsbeere"]
[null,"Anlagendaten","Wärmebedarf ab Kesselflansch","MWh/a",{"$f":"1*1500","v":1500},null,null,null,null,null,null,null,null,null,null,null,{"$f":"160*150*10^-3","v":24},null,"Erle, Grau-"]
[null,null,"Kessel-Jahresnutzungsgrad","%",null,null,0.85,{"$f":"$G50","v":0.85},{"$f":"$G50","v":0.85},null,0.85,null,0.85,null,0.9,null,0.85,null,"Erle"]
[null,null,"Anteil an der Wärmeproduktion","%",{"$f":"SUM(G51+H51+I51+K51+M51+O51)","v":0.99999999999999989},null,0.3,0.3,0.3,null,0.08,null,0,null,0.02,null,1,null,"Erle, Schwarz-"]
[null,"Brennstoffdaten","Brennstoffbedarf pro Jahr","MWh/a",{"$f":"E49*(1-O51)/G50+E49*O51/O50","v":1762.7450980392157},null,{"$f":"Endenergie*G51","v":528.82352941176464},{"$f":"Endenergie*H51","v":528.82352941176464},{"$f":"Endenergie*I51","v":528.82352941176464},null,{"$f":"Endenergie*K51","v":141.01960784313727},null,{"$f":"M51","v":0},null,{"$f":"Endenergie*O51","v":35.254901960784316},null,{"$f":"Q49/Q50","v":28.235294117647058},null,"Esche"]
[null,null,"Brennstoffvolumen","m³ FS /a",{"$f":"SUM(G53+H53+I53+K53+M53+O53)","v":2204.0581244648147},null,{"$f":"G52/G26*1000","v":712.58563646743676},{"$f":"H52/H26*1000","v":549.46460071515048},{"$f":"I52/I26*1000","v":678.30458937622075},null,{"$f":"K52/K26*1000","v":260.17105446920812},null,{"$f":"M52/M26*1000","v":0},null,{"$f":"O52/O26*1000","v":3.5322434367986113},null,{"$f":"Q52/Q26*1000","v":2.8289380138987763},null,"Eukalyptus, Blue gum"]
[null,null,"Brennstoffgewicht","t TS /a (t-atro)",{"$f":"SUM(G54+H54+I54+K54+M54+O54)","v":377.65256235534173},null,{"$f":"G53*G31/1000","v":111.99993482613291},{"$f":"H53*H31/1000","v":119.00084536448446},{"$f":"I53*I31/1000","v":113.02589372775965},null,{"$f":"K53*K31/1000","v":30.669400680364291},null,{"$f":"M53*M31/1000","v":0},null,{"$f":"O53*O31/1000","v":2.9564877566004375},null,{"$f":"Q53*Q31/1000","v":2.3678211176332757},null,"Hasel"]
[null,null,"Brennstoffgewicht","t FS /a (t-lutro)",689.79833851827448,null,{"$f":"G53*G30/1000","v":203.63624513842345},{"$f":"H53*H30/1000","v":216.36517338997172},{"$f":"I53*I30/1000","v":205.50162495956303},null,{"$f":"K53*K30/1000","v":61.338801360728581},null,{"$f":"M53*M30/1000","v":0},null,{"$f":"O53*O30/1000","v":2.9564936695877768},null,{"$f":"Q53*Q30/1000","v":2.3678258532849821},null,"Hickory"]
[null,null,"Aschengewicht (Schätzwert)","t /a",8.9245688427354075,null,{"$f":"G55/(1+G16/100)*G35/100","v":2.1065818462595529},{"$f":"H55/(1+H16/100)*H35/100","v":2.2382604143790177},{"$f":"I55/(1+I16/100)*I35/100","v":2.1258788788920318},null,{"$f":"K55/(1+K16/100)*K35/100","v":2.4535520544291431},null,{"$f":"M55/(1+M16/100)*M35/100","v":0},null,{"$f":"O55/(1+O16/100)*O35/100","v":2.9564877566122636E-4},null,{"$f":"Q55/(1+Q16/100)*Q35/100","v":2.3678211176427467E-4},null,"Kastanie, Edel-"]
[null,null,"Aschenvolumen (Schätzwert)","m³ /a",12.749384061050581,null,{"$f":"G56/G36*1000","v":3.0094026375136469},{"$f":"H56/H36*1000","v":3.197514877684311},{"$f":"I56/I36*1000","v":3.0369698269886172},null,{"$f":"K56/K36*1000","v":3.5050743634702046},null,{"$f":"M56/M36*1000","v":0},null,{"$f":"O56/O36*1000","v":4.2235539380175191E-4},null,{"$f":"Q56/Q36*1000","v":3.3826015966324953E-4},null,"Kastanie, Ross-"]
[null,null,"Brennstoffkosten pro Jahr","Euro/a",{"$f":"SUM(G58+H58+I58+K58+M58+O58)","v":34867.098039215678},null,{"$f":"G52*G41","v":10047.647058823528},{"$f":"H52*H41","v":10047.647058823524},{"$f":"I52*I41","v":10047.647058823528},null,{"$f":"K52*K41","v":2608.8627450980389},null,{"$f":"M52*M41","v":0},null,{"$f":"O52*O41","v":2115.294117647059},null,{"$f":"Q52*Q41","v":2032.9411764705883},null,"Kirsche, Trauben"]
[null,null,"Anlieferungskosten pro Jahr","Euro/a",{"$f":"SUM(G59+H59+I59+K59+M59+O59)","v":3451.884465360813},null,{"$f":"G46*G47","v":1110.7431553004915},{"$f":"H46*H47","v":865.46069355988686},{"$f":"I46*I47","v":1027.5081247978153},null,{"$f":"K46*K47","v":408.92534240485719},{"$f":"L46*L47","v":0},{"$f":"M46*M47","v":0},{"$f":"N46*N47","v":0},{"$f":"O46*O47","v":39.247149297762348},null,{"$f":"Q46*Q47","v":31.432644598875296},null,"Kirsche, Vogel-"]
[null,null,"Gesamte Brennstoffkosten pro Jahr","Euro/a",{"$f":"SUM(E58:E59)","v":38318.982504576488},null,{"$f":"SUM(G58:G59)","v":11158.39021412402},{"$f":"SUM(H58:H59)","v":10913.107752383412},{"$f":"SUM(I58:I59)","v":11075.155183621344},null,{"$f":"SUM(K58:K59)","v":3017.7880875028959},null,{"$f":"SUM(M58:M59)","v":0},null,{"$f":"SUM(O58:O59)","v":2154.5412669448215},null,{"$f":"SUM(Q58:Q59)","v":2064.3738210694637},null,"Linde"]
[null,null,"Gewichteter Brennstoffpreis / (Einzelpreise)","Euro/MWh",{"$f":"E60/Endenergie","v":21.738243690026707},null,{"$f":"IF(G52=0,\"\",G60/G52)","v":21.100404186886358},{"$f":"IF(H52=0,\"\",H60/H52)","v":20.636577507287878},{"$f":"IF(I52=0,\"\",I60/I52)","v":20.943007577481964},null,{"$f":"IF(K52=0,\"\",K60/K52)","v":21.399776482570591},null,{"$f":"IF(M52=0,\"\",M60/M52)","v":""},null,{"$f":"IF(O52=0,\"\",O60/O52)","v":61.11323949621017},null,{"$f":"Q60/Q52","v":73.11323949621017},null,"Linde, Sommer-"]
[null,null,null,null,null,null,null,null,null,null,null,null,null,null,null,null,null,null,"Linde, Winter-"]
[null,"Die Berechnungsvorlage wurde nach bestem Wissen und Gewissen erstellt, Fehler können aber dennoch nicht ausgeschlossen werden. Der Autor übernimmt keinerlei Haftung!",null,null,null,null,null,null,null,null,null,null,null,null,null,null,null,null,"Mahagoni, Khaya-"]
[null,"Erstellt von DI Kasimir P. Nemestothy & Bernhard Lang, Österreichische Energieagentur - Austrian Energy Agency, Mariahilfer Straße 136, 1150 Wien, www.energyagency.at",null,null,null,null,null,null,null,null,null,null,null,null,null,null,null,null,"Mehlbeere"]
[null,"Update Version 1.9: Dezember 2017, DI H. Tretter, Österreichische Energieagentur - Austrian Energy Agency ",null,null,null,null,null,null,null,null,null,null,null,null,null,null,null,null,"Nuss, Schwarz-"]
[null,"Copyright: klimaaktiv energieholz / Österreichische Energieagentur - Austrian Energy Agency",null,null,null,null,null,null,null,null,null,null,null,null,null,null,null,null,"Nuss, Wal-"]
[null,null,null,null,null,null,null,null,null,null,null,null,null,null,null,null,null,null,"Pappel"]
[null,null,null,null,null,null,null,null,null,null,null,null,null,null,null,null,null,null,"Pappel, Schwarz-"]
[null,"ALLGEMEINE BEMERKUNGEN ZUM BERECHNUNGSBLATT ",null,null,null,null,null,null,null,null,null,null,null,null,null,null,null,null,"Pappel, Zitter-"]
[null,"(Kommentare mit Detailinformationen zu einzelnen Kennwerten erhalten Sie, indem Sie den Mauszeiger auf das rote Dreieck bei dem jeweiligen Kennwert ziehen)",null,null,null,null,null,null,null,null,null,null,null,null,null,null,null,null,"Platane"]
[null,null,null,null,null,null,null,null,null,null,null,null,null,null,null,null,null,null,"Robinie"]
[null,"Im Berechnungsablauf werden Makros verwendet, bitte stellen Sie die Sicherheitsstufe für Makros auf \"mittel\", um alle Funktionen ausführen zu können",null,null,null,null,null,null,null,null,null,null,null,null,null,null,null,null,"Teak"]
[null,"(Drop Down Menü \"Extras\" --> Makro --> Sicherheit --> in der Registerkarte Sicherheitsstufe Einstellung auf \"mittel\" ändern).",null,null,null,null,null,null,null,null,null,null,null,null,null,null,null,null,"Ulme"]
[null,null,null,null,null,null,null,null,null,null,null,null,null,null,null,null,null,null,"Ulme, Berg-"]
[null,"Die Berechnungsgrundlage wurde in Anlehnung an die ÖNORM M 7132, ÖNORM M 7133, ÖNORM M 7135, ÖNORM B 3012, Übersichtstabellen der LWK OÖ (G. Danninger) und LWK NÖ (A. Jonas) sowie üblicher Erfahrungswerte erstellt. ",null,null,null,null,null,null,null,null,null,null,null,null,null,null,null,null,"Ulme, Feld-"]
[null,"Bei der Anwendung sind folgende Annahmen zu berücksichtigen:",null,null,null,null,null,null,null,null,null,null,null,null,null,null,null,null,"Ulme, Flatter-"]
[null," - Die ersten 5 Spalten des Kalkulationsblattes (Spalten: Holzarten, Rinde, Presslinge) verwenden die durchschnittlichen Werte aus dem Datenblatt für die Berechnungen.",null,null,null,null,null,null,null,null,null,null,null,null,null,null,null,null,"Vogelbeere"]
[null," - In der letzten Spalte des Kalkulationsblattes (Spalte Sonstige) können eigene Datenquellen bzw. Erfahrungswerte verwendet werden.",null,null,null,null,null,null,null,null,null,null,null,null,null,null,null,null,"Weide"]
[null," - Laut ÖNORM M 7132 kann der untere Heizwert für Laubholz mit 18 MJ/kg TS und für Nadelholz mit 19 MJ/kg TS angenommen werden.",null,null,null,null,null,null,null,null,null,null,null,null,null,null,null,null,"Weide, Silber-"]
[null," - Die Darrdichte von wasserfreiem Holz liegt zwischen ca. 400 - 750 kg/m³ TS (Trockensubstanz) und ist von der Holzart, den Wuchsbedingungen (z. B. nährstoffreicher Tieflagenstandort oder nährstoffarmer Hochlagenstandort) sowie sonstigen Qualitätsmerkmalen",null,null,null,null,null,null,null,null,null,null,null,null,null,null,null,null,"Zwetschkenbaum"]
[null,"   (Astigkeit, Reaktionsholz, Fäulnis, etc.) abhängig. Auch innerhalb einer Holzart kann die Darrdichte bei einzelnen Holzlieferungen stark variieren! Die Darrdichte von Briketts stellt nur eine grobe Abschätzung dar und kann je nach Brikettform "]
[null,"    und Schlichtung mehr oder weniger vom angenommenen Schätzwert abweichen."]
[null," - In Abhängigkeit von Holzart und Größenklasse beträgt das Schüttgewicht von Waldhackgut ca. 150 bis 230 kg/m³ TS (Trockensubstanz)."]
[null," - Zur Umrechnung auf die Rohdichte bei einem bestimmten Wassergehalt werden mittlere holzartenspezifische Schwindmaße berücksichtigt (je nach Holzart zwischen 8 - 20 %, siehe Tabellenblatt \"Datenblatt\")."]
[null," - Das Schüttgewicht von Pellets beträgt ca. 600 kg/m³ TS (Trockensubstanz)  bzw. ca. 650 kg/m³ FS (Frischsubstanz). Die Lagerungsdichte für Pellets mit 650 kg/srm entspricht damit der in Österreich üblichen Handelsware aus Fichtenspänen mit 6 mm Durchmesser"]
[null,"   Durchmesser und 8 % Wassergehalt bei Tankwagenlieferung (lose)."]
[null," - Die angegebene Lagerungsdichte für Briketts mit ca. 760 kg/rm (auf Paletten mit 10 kg folierter Packungen geschlichtet) stellt nur eine grobe Abschätzung dar und kann ja nach Brikettform und Verpackungsart erheblich abweichen."]
[null," - Die Abschätzung des Aschengewichtes bzw. Aschenvolumens stellt nur eine Richtgröße für die anfallende Aschenmenge dar und kann je nach Brennstoffqualität, Verschmutzungsgrad, Feuerungstechnik sowie Aschenmanipulation stark variieren. "]
[null," - Es wird empfohlen, Verträge über Energieholzlieferungen möglichst auf der Basis der gelieferten Energiemenge in Euro pro MWh oder auf der Basis des Gewichtes der gelieferten Trockensubstanz in Euro pro t-atro abzuschliessen."]
[null," - Die Umrechnung der Brennstoffkosten pro MWh auf volumsbezogene Preise soll zur Verbesserung der Preistransparenz bzw. für Kostenkalkulationen dienen."]
[]
[null,"Verwendete Abkürzungen:"]
[null,"CAPEX: Abk. für engl. capital expenditures. Mit den CAPEX werden Investitionsausgaben in die (Heizungs-)Anlagentechnik bezeichnet."]
[null,"FS: Frischsubstanz"]
[null,"FS (t-lutro): Frischsubstanz lufttrocken, variabler Wassergehalt"]
[null,"OPEX: Abk. für engl. operational expenditures. Mit den OPEX werden laufende (jährliche) Ausgaben des Anlagenbetriebs bezeichnet. Neben den Brennstoffkosten beinhalten die OPEX auch Personal-, Wartungs- und Instandhaltungs- und weitere sowie sonstige jährliche Ausgaben."]
[null,"TS: Trockensubstanz"]
[null,"TS (t-atro): Trockensubstanz absolut trocken, Wassergehalt 0 %"]
[]
[null,"Update Version 1.9"]
[null," - Berücksichtigung von Anlieferungskosten"]
[null," - Neue Benennung und Erweiterung der vorletzten Spalte \"Spitzenlast-Brennstoff\", zusätzlich zu (bisher nur) Erdgas ist nun auch Heizöl Extra Leicht wählbar. Bei dieser Erweiterung erfolgte auch in Update der chemischen und brenntechnischen Kennwerte von Erdgas und eine Neuanlage jener von Heizöl Extra Leicht."]
[null,"   Für Heizöl Extra Light (HEL) wurde "]
[null,"     ein Brennwert von 11,928 kWh/kg gemäß Österreichischer Energiebilanz 2015 (Stand Okt. 2017) für das Jahr 2015 angesetzt: "]
[null,"     eine Dichte von 837 kg/m³ gemäß Österreichischer Kraftstoffverordnung 2012, Fassung vom 29.01.2015, für Dieselkraftstoff (entspricht HEL) angesetzt"]
[null,"     ein Wasserstoffanteil von 14 Gewichtsprozent angesetzt (Quelle: Basiswissen Verbrennungsmotor: Fragen - rechnen - verstehen - bestehen, Ausgabe 2. Klaus Schreiner. Springer-Verlag. 27 November 2014. S 273)"]
[null,"     der Wasser- und Aschegehalt stammt aus die Lieferspezifikation der OMV für HEL (gemäß ÖNORM C 1109 (Ausgabe 03/2014)), Stand Dez. 2017"]
[null,"   Für Erdgas (H) wurde "]
[null,"     ein Brennwert von 11,3 kWh/Normkubikmeter angesetzt. Gemäß Veröffentlichung der Energie Control Austria gilt ab 1. Jänner 2017 im Marktgebieten Ost (MG-Ost) ein\nVerrechnungsbrennwert von 11,30 kWh/Nm³."]
[null,"     eine Dichte von 754 kg/m³ gemäß Website der Wiener Netze | Kenndaten für Erdgas | Kenndaten | Rund um Erdgas (entnommen am 18.12.2017) angesetzt"]
[null,"     ein Wasserstoffanteil von 25 Gewichtsprozent angesetzt (Quelle: Basiswissen Verbrennungsmotor: Fragen - rechnen - verstehen - bestehen, Ausgabe 2. Klaus Schreiner. Springer-Verlag. 27 November 2014. S 273)"]
[null," - Umstrukturierung der Erfassung der Anlagendaten (bisher Eingabe von Brennstoffwärmebedarf, nun Eingabe von Nutzwärmebedarf (ab Kesselflansch) und Kesseljahresnutzungsgraden für Biomasse- und Spitzenlastkessel."]
[null," - Einführung einer neuen Spalte (ganz rechts am Blatt) zum Vergleich der Brennstoffpreise einer Biomasse-Heizanlage (bisher bestehendes Datenblatt) mit dem Brennstoffpreis eines Haushalts oder anderen Verbrauchers, dessen jährlicher Brennstoffbedarf und Einkaufspreise, etc. gesondert erfasst werden können."]
[]
[null,"klimaaktiv und Energieeffizienzgesetz"]
[null,"Bitte beachten Sie, dass die Programme und Initiativen von klimaaktiv für die Steigerung von Energieeffizienz bzw. die Umsetzung von klimaaktiv durch die Österreichische Energieagentur keinen Ersatz für die Verpflichtungen nach dem Energieeffizienzgesetz, EEffG, darstellen und nicht als Gutachten oder Stellungnahme gegenüber der Nationalen Energieeffizienz-Monitoringstelle gelten. Die Bearbeitung und Registrierung gemeldeter Daten durch die Monitoringstelle erfolgt unabhängig von den Inhalten der klimaaktiv Kooperationen. "]
[null,"Sollten im Rahmen der Kooperationen mit klimaaktiv Leistungen bzw. Förderungen erbracht werden, die als Maßnahmen von strategischen Instrumenten im Sinne des Energieeffizienzgesetzes anerkannt werden können, ist eine Anrechnung nur nach Maßgabe der Vorgaben des § 27 Abs. 4 EEffG möglich. Dies ist seitens des Vertragspartners/der Vertragspartner bei der Meldung von Maßnahmen gemäß § 9 bis 11 EEffG zu berücksichtigen."]

{"sheet":"Datenblatt","index":1,"n_rows":89,"n_cols":23,"rows_kept":89,"cut":false,"hidden":false,"merged":[[2,21,4,21],[2,22,4,22],[2,15,2,16],[2,9,2,10],[2,11,2,14],[2,17,4,17],[2,19,4,19],[2,20,4,20],[2,6,3,6],[2,7,3,7],[2,8,3,8],[2,1,4,1],[2,2,4,2],[2,3,4,3],[2,4,4,4],[2,5,4,5]]}
[null,"Datenblatt zur Ermittlung von Kenndaten und Preisen für Energieholzsortimente"]
[]
[null,"Holz- bzw. Brennstoffart","Kurz-\nzeichen","Botanisch","Sonstige Bezeichnung","Gruppe","Sortier-\nung","H-Gehalt","Brenn-\nwert","Darrdichte",null,"Rohdichte HF 12-15",null,null,null,"Schwindmaß",null,"Bemerkung",null,"Sortiment","Umrechnung","Einheit","Aschengehalt"]
[null,null,null,null,null,null,null,null,null,"mittlere","Quelle ","minimale","mittlere","maximale","Quelle","mittleres","Quelle"]
[null,null,null,null,null,null,null,"[%]","[MJ/kg TS]","[kg/m³]",null,"[kg/m³]","[kg/m³]","[kg/m³]",null,"[%]"]
[null,"NH & LH","-","-","-","NH & LH Mischung",1,6.17,20.206035400000001,475,"5)"," -"," -"," -","-",12.3,"5)","Darrdichte und Schwindmaß wurden durch Gewichtung entsprechend der Nutzung der Baumarten gemäß österr. Waldinventur ermittelt; ebenso wurden der H-Gehalt und der Brennwert ermittelt. ",null,"Feste Holzmasse",1,"fm",1.5]
[null,"Nadelholz","-","-","-","NH Mischung",2,6.2,20.3669431,445,"5)"," -"," -"," -","-",11.7,"5)","Darrdichte und Schwindmaß wurden durch Gewichtung entsprechend der Nutzung der Baumarten gemäß österr. Waldinventur ermittelt. ",null,"Scheitholz (1 m) gespalten",1.6667000000000001,"rm",1]
[null,"Douglasie","DG","Pseudotsuga menziesii","-","Nadelholz (NH)",3,6.2,20.3669431,470,"1)",350,502,770,"1)",11.9,"1)",null,null,"Stückholz (geschlichtet)",1.25,"rm",1]
[null,"Eibe","-","Taxus baccata","-","Nadelholz (NH)",3,6.2,20.3669431,640,"3)",640,670,810,"3)",8.8000000000000007,"3)",null,null,"Stückholz (geschüttet)",2,"srm",1]
[null,"Fichte","FI","Picea abies","Rottanne (Picea excelsa), Gemeine Fichte, Rotfichte","Nadelholz (NH)",3,6.2,20.3669431,410,"6)",330,470,680,"2)",11.7,"1)","In der Praxis hat sich der Darrdichtewert mit 430 kg/m³ aus Kollmann bzw. Wagenführ etabliert. (ÖNORM 410 kg/m³, Holzhandelsusancen bzw. Holzübernahme Richtlinie Fichte/Tanne 427 kg-atro je fm o.R.)",null,"Holzhackgut P16",2.5,"srm",1.5]
[null,"Fichte, Sitka-","FIS","Picea sitchensis","-","Nadelholz (NH)",3,6.2,20.3669431,410,"1)",280,450,660,"2)",12.2,"2)",null,null,"Holzhackgut P31",2.5,"srm",1.5]
[null,"Hemlock","HEM","Tsuga heterophylla","Western Hemlock","Nadelholz (NH)",3,6.2,20.3669431,440,"3)",440,480,510,"3)",12.7,"3)",null,null,"Holzhackgut P45",2.5,"srm",1.5]
[null,"Kiefer","KI","Pinus sylvestris","Weißkiefer, Föhre","Nadelholz (NH)",3,6.2,20.3669431,510,"1)",333,543,890,"1)",12.1,"1)","Umgangssprachlich wird in Österreich die Weißkiefer bzw. Föhre häufig verkürzt als \"Kiefer\" bezeichnet.",null,"Waldhackgut C1 ",2.5,"srm",2]
[null,"Kiefer, Radiata-","KRA, PNRD","Pinus radiata","Radiata pine","Nadelholz (NH)",3,6.2,20.3669431,380,"1)",430," -",590,"1)",7.1,"3)","Der mittlere Rohdichtewert ist in der Norm möglicherweise fehlerhaft abgedruckt (410 statt 510 kg/m³ ?).",null,"Waldhackgut C2",2.5,"srm",3]
[null,"Kiefer, Schwarz-","SK","Pinus nigra","-","Nadelholz (NH)",3,6.2,20.3669431,560,"1)",370,593,950,"1)",13,"1)","Holzübernahme Richtlinien (Papierholz Austria, Revision 6) Schwarzkiefer 545 kg/FOO (Festmeter, ohne Rinde geliefert, ohne Rinde verrechnet)",null,"Waldhackgut C3",2.5,"srm",5]
[null,"Kiefer, Weiß-","KI","Pinus sylvestris","Kiefer, Föhre, Gemeine Kiefer, Rot-, Sandkiefer","Nadelholz (NH)",3,6.2,20.3669431,510,"1)",333,543,890,"1)",12.1,"1)",null,null,"Waldhackgut C4",2.5,"srm",7]
[null,"Kiefer, Weymouths-","KW","Pinus strobus","Strobe, Yellow pine","Nadelholz (NH)",3,6.2,20.3669431,370,"1)",340,399,510,"1)",8.4,"1)",null,null,"Sägespäne",3.0303,"srm",1]
[null,"Kiefer, Zirbel-","ZI","Pinus cembra","Zirbe, Arve","Nadelholz (NH)",3,6.2,20.3669431,400,"1)",400,430,600,"1)",9,"1)",null,null,"Hobelspäne",5,"srm",1]
[null,"Lärche","LA","Larix decidua","Europäische Lärche","Nadelholz (NH)",3,6.2,20.3669431,550,"1)",440,583,850,"1)",11.4,"1)","Holzhandelsusancen bzw. Holzübernahme Richtlinie Lärche 545 kg-atro je fm o.R.",null,"Feste Rindenmasse",1,"fm",6]
[null,"Redwood","RWK","Sequoia sempervirens","Kalifornisches Redwood","Nadelholz (NH)",3,6.2,20.3669431,370,"1)",400,450,500,"3)",7,"3)",null,null,"Rinde (geschüttet)",3.3332999999999999,"srm",6]
[null,"Riesenlebensbaum","RCW, THPL","Thuja plicata","Western red cedar, Kanadische Rotzeder","Nadelholz (NH)",3,6.2,20.3669431,340,"1)",330,390,460,"3)",7.1,"3)",null,null,"Briketts, Holz-","-","t-lutro",0.5]
[null,"Tanne","TA","Abies alba","Weißtanne","Nadelholz (NH)",3,6.2,20.3669431,410,"1)",350,441,750,"1)",11.5,"1)",null,null,"Briketts, Rinden-","-","t-lutro",6]
[null,"Zeder","ZED","Cedrus deodara","Himalaja-Zeder , Echte Zeder","Nadelholz (NH)",3,6.2,20.3669431,470,"1)","-",545,"-","3)",11.2,"3)","Keine Angaben für min. und max. Rohdichte.",null,"Pellets, Holz-","-","t-lutro",0.3]
[null,"Zypresse","ZYP","Cypressus sempervirens","Echte Zypresse, Immergrüne Zypresse","Nadelholz (NH)",3,6.2,20.3669431,450,"1)",450," -",590,"3)",8.8000000000000007,"3)","Keine Angabe für mittlere Rohdichte.",null,"Pellets, Rinden-","-","t-lutro",6]
[null,"Laubholz","-","-","-","LH Mischung",4,6,19.322848199999999,640,"5)"," -"," -"," -","-",15.4,"5)","Darrdichte und Schwindmaß wurden durch Gewichtung entsprechend der Nutzung der Baumarten gemäß österr. Waldinventur ermittelt. ",null,"Umrechnungsfaktoren gemäß ÖNORM M 7132, Papierholz Austria und den klimaaktiv Umrechnungsfaktoren für Energieholzsortimente "]
[null,"Hartlaubholz","-","-","-","LH Mischung",4,6,19.322848199999999,680,"5)"," -"," -"," -","-",16.2,"5)","Darrdichte und Schwindmaß wurden durch Gewichtung entsprechend der Nutzung der Baumarten gemäß österr. Waldinventur ermittelt. ",null,"Aschengehalt gemäß Erfahrungswerten, Obernberger 1997, ÖNORM C 4005"]
[null,"Weichlaubholz","-","-","-","LH Mischung",4,6,19.322848199999999,515,"5)"," -"," -"," -","-",13,"5)","Darrdichte und Schwindmaß wurden durch Gewichtung entsprechend der Nutzung der Baumarten gemäß österr. Waldinventur ermittelt. "]
[null,"Ahorn","-","Acer sp.","-","Laubholz (LH)",5,6,19.322848199999999,600,"4)"," -"," -"," -","-",11.5,"4)","In den Umrechnungstabellen der LWK wird nur ein Wert für \"Ahorn\", ohne Differenzierung in die verschiedenen Ahornarten, verwendet."]
[null,"Ahorn, Berg-","BA","Acer pseudoplatanus","-","Laubholz (LH)",5,6,19.322848199999999,590,"1)",530,623,790,"1)",12.6,"1)"]
[null,"Ahorn, Feld-","FA","Acer campestre","-","Laubholz (LH)",5,6,19.322848199999999,690,"1)"," -"," -"," -","-",12.9,"5)","Keine Angaben zur Rohdichte, Schwindmaß als Schätzwert der Energieagentur (Mittelwert zwischen Berg- und Spitzahorn)."]
[null,"Ahorn, Spitz-","SA","Acer platanoides","-","Laubholz (LH)",5,6,19.322848199999999,620,"1)",560,653,810,"1)",13.2,"1)"]
[null,"Birke","BI","Betula sp.","-","Laubholz (LH)",5,6,19.322848199999999,640,"1)",510,673,830,"1)",13.9,"1)","Holzübernahme Richtlinien (Papierholz Austria, Revision 6) Birke 503 kg/FOO (Festmeter, ohne Rinde geliefert, ohne Rinde verrechnet)"]
[null,"Birke, Hänge-","BI","Betula pendula (Betula verrucosa)","Gemeine Birke, Sandbirke, Weißbirke, Rauhbirke","Laubholz (LH)",5,6,19.322848199999999,640,"1)",510,673,830,"1)",13.9,"1)"]
[null,"Birke, Moor-","BI","Betula pubescens","Haarbirke, Flaumbirke","Laubholz (LH)",5,6,19.322848199999999,640,"1)",510,673,830,"1)",13.9,"1)"]
[null,"Birnbaum","BB","Pyrus communis","Feldbirne, Holzbirne, Wilde Birne","Laubholz (LH)",5,6,19.322848199999999,700,"1)",690,732,800,"1)",14.1,"1)"]
[null,"Buche, Rot-","BU","Fagus sylvatica","Buche, Gemeine Buche","Laubholz (LH)",5,6,19.322848199999999,680,"1)",540,712,910,"1)",17.899999999999999,"1)","Holzübernahme Richtlinien (Papierholz Austria, Revision 6) Buche 598 kg/FOO (Festmeter, ohne Rinde geliefert, ohne Rinde verrechnet)"]
[null,"Buche, Weiß-","HB","Carpinus betulus","Hainbuche, Hagebuche","Laubholz (LH)",5,6,19.322848199999999,750,"1)",640,780,860,"1)",18.8,"1)"]
[null,"Buchsbaum","BUC, BXSM","Buxus sempervirens","-","Laubholz (LH)",5,6,19.322848199999999,920,"1)",900,"-",1030,"3)",27,"3)","Keine Angabe für mittlere Rohdichte."]
[null,"Eiche","EI","Quercus sp.","-","Laubholz (LH)",5,6,19.322848199999999,680,"4)"," -"," -"," -","-",13.9,"4)","In den Umrechnungstabellen der LWK wird ein Wert für \"Eiche\" ohne Differenzierung in die verschiedenen Eichenarten verwendet."]
[null,"Eiche, Rot-","EIR","Quercus rubra","Amerikanische Roteiche, American red oak, Northern red oak, (Quercus borealis)","Laubholz (LH)",5,6,19.322848199999999,660,"1)",550,700,980,"3)",13.1,"3)"]
[null,"Eiche, Stiel-","EI","Quercus robur ","Sommereiche, (Quercus pedunculata Ehrh.), allgem. Europäische Eiche","Laubholz (LH)",5,6,19.322848199999999,670,"1)",430,702,960,"1)",13.6,"1)"]
[null,"Eiche, Trauben-","EI","Quercus petraea","Wintereiche, (Quercus sessiliflora Salisb.), allgem. Europäische Eiche","Laubholz (LH)",5,6,19.322848199999999,670,"1)",430,702,960,"1)",13.6,"1)"]
[null,"Eiche, Zerr-","EZ","Quercus cerris","-","Laubholz (LH)",5,6,19.322848199999999,740,"1)"," -"," -"," -","-",13.9,"4)","Keine Angaben für Rohdichte."]
[null,"Elsbeere","EL","Sorbus torminalis","Sorbe, Atlasbaum, Seidenbaum","Laubholz (LH)",5,6,19.322848199999999,710,"1)",670,742,900,"1)",17.3,"1)"]
[null,"Erle","ER","Alnus sp.","-","Laubholz (LH)",5,6,19.322848199999999,490,"1)",490,523,640,"1)",13.1,"1)","In der Norm werden Schwarz- und Grauerle in einer Spalte gemeinsam als \"Erle\" definiert."]
[null,"Erle, Grau-","ER","Alnus incana","-","Laubholz (LH)",5,6,19.322848199999999,490,"1)",490,523,640,"1)",13.1,"1)"]
[null,"Erle, Schwarz-","ER","Alnus glutinosa","Erle, Gemeine Erle, Roterle","Laubholz (LH)",5,6,19.322848199999999,490,"1)",490,523,640,"1)",13.1,"1)"]
[null,"Esche","ES","Fraxinus excelsior","Gemeine Esche, Waldesche, (im Handel Weiß-, Braun-, Olivesche)","Laubholz (LH)",5,6,19.322848199999999,670,"1)",450,702,860,"1)",13.2,"1)"]
[null,"Eukalyptus, Blue gum","EUG, EUGL","Eucalyptus globulus","-","Laubholz (LH)",5,6,19.322848199999999,700,"1)",720," -",770,"3)",32.4,"3)","Keine Angabe für mittlere Rohdichte."]
[null,"Hasel","HA","Corylus avellana","Haselnuss","Laubholz (LH)",5,6,19.322848199999999,560,"1)"," -"," -"," -","-",13.4,"4)","Keine Angaben für Rohdichte."]
[null,"Hickory","HIC, CAXX","Carya spp.","Echte Hickory, Filzige Hickory","Laubholz (LH)",5,6,19.322848199999999,760,"1)",700,800,840,"3)",19.8,"3)"]
[null,"Kastanie, Edel-","EK","Castanea sativa, Castanea vesca","Echte Kastanie, Eßkastanie","Laubholz (LH)",5,6,19.322848199999999,530,"1)"," -",563," -","1)",11.3,"1)"]
[null,"Kastanie, Ross-","KA","Aesculus hippocastanum","-","Laubholz (LH)",5,6,19.322848199999999,510,"1)",500,550,590,"3)",11,"3)"]
[null,"Kirsche, Trauben","TK","Prunus padus","-","Laubholz (LH)",5,6,19.322848199999999,510,"1)"," -"," -"," -","-",13.7,"5)","Keine Angaben zur Rohdichte, Schwindmaß als Schätzwert der Energieagentur (Schwindmaß der Vogelkirsche)."]
[null,"Kirsche, Vogel-","KB","Prunus avium, Cerasus avium (Wagenf.)","Kirschbaum, Europäische Kirsche, Süßkirsche, Waldkirsche, Wildkirsche","Laubholz (LH)",5,6,19.322848199999999,570,"1)",520,603,700,"1)",13.7,"1)"]
[null,"Linde","LI","-","-","Laubholz (LH)",5,6,19.322848199999999,520,"1)",250,553,600,"1)",14.9,"1)","In der Norm werden Sommer- und Winterlinde in einer Spalte gemeinsam als \"Linde\" definiert."]
[null,"Linde, Sommer-","LI","Tilia cordata (Norm), Tilia grandifolia (Kollm.)","-","Laubholz (LH)",5,6,19.322848199999999,520,"1)",250,553,600,"1)",14.9,"1)"]
[null,"Linde, Winter-","LI","Tilia platyphyllos (Norm), Tilia parvifolia (Kollm.)","-","Laubholz (LH)",5,6,19.322848199999999,520,"1)",250,553,600,"1)",14.9,"1)"]
[null,"Mahagoni, Khaya-","MAA, KHXX","Khaya ivorensis, Khaya grandifoliola","Afrikanisches Mahagoni","Laubholz (LH)",5,6,19.322848199999999,460,"1)",450,510,620,"3)",9.1,"3)"]
[null,"Mehlbeere","ME","Sorbus aria Crantz","-","Laubholz (LH)",5,6,19.322848199999999,700,"1)"," -"," -"," -","-",17.7,"5)","Keine Angaben zur Rohdichte, Schwindmaß als Schätzwert der Energieagentur (Mittelwert zwischen Els- und Vogelbeere)."]
[null,"Nuss, Schwarz-","-","Juglans nigra","Amerikanischer Nußbaum, Schwarze Walnuß","Laubholz (LH)",5,6,19.322848199999999,560,"1)",580,640,810,"3)",12.7,"3)"]
[null,"Nuss, Wal-","NB","Juglans regia","Walnussbaum, Europäischer Nussbaum","Laubholz (LH)",5,6,19.322848199999999,640,"1)",570,673,810,"1)",13.4,"1)"]
[null,"Pappel","PA","-","-","Laubholz (LH)",5,6,19.322848199999999,410,"1)",410,441,560,"1)",13.8,"1)","In der Norm wird die Schwarzpappel verkürzt als \"Pappel\" definiert. In der Holzübernahme Richtlinie (Papierholz Austria, Revision 6) wird Pappel mit 323 kg/FOO umgerechnet"]
[null,"Pappel, Schwarz-","PA","Populus nigra","-","Laubholz (LH)",5,6,19.322848199999999,410,"1)",410,441,560,"1)",13.8,"1)"]
[null,"Pappel, Zitter-","AS","Populus tremula","Aspe, Espe","Laubholz (LH)",5,6,19.322848199999999,450,"1)",400,482,600,"1)",12,"1)","Holzübernahme Richtlinien (Papierholz Austria, Revision 6) Aspe 407 kg/FOO (Festmeter, ohne Rinde geliefert, ohne Rinde verrechnet)"]
[null,"Platane","PL","Platanus sp., Platanus orientalis (Kollm.)","-","Laubholz (LH)",5,6,19.322848199999999,600,"1)",420,630,690,"2)",13.7,"2)"]
[null,"Robinie","RO","Robinia pseudoacacia","Falsche Akazie","Laubholz (LH)",5,6,19.322848199999999,730,"1)",580,761,900,"1)",10.6,"1)"]
[null,"Teak","TEK","Tectona grandis","-","Laubholz (LH)",5,6,19.322848199999999,650,"1)","-",683,"-","1)",8.8000000000000007,"1)","Darrdichtewert laut Wagenführ wesentlich niedriger als Normwert."]
[null,"Ulme","UL","Ulmus spp.","Ruste, Rüster","Laubholz (LH)",5,6,19.322848199999999,640,"1)",480,673,860,"1)",13.2,"1)"]
[null,"Ulme, Berg-","-","Ulmus montana","Bergrüster","Laubholz (LH)",5,6,19.322848199999999,640,"2)",480,680,860,"2)",13.2,"2)"]
[null,"Ulme, Feld-","-","Ulmus campestris","Feldrüster, Rotrüster","Laubholz (LH)",5,6,19.322848199999999,640,"2)",480,680,860,"2)",13.2,"2)"]
[null,"Ulme, Flatter-","-","Ulmus effusa","-","Laubholz (LH)",5,6,19.322848199999999,550,"2)",480,680,860,"2)",15.5,"2)"]
[null,"Vogelbeere","EE","Sorbus aucuparia","Eberesche, Echte Eberesche, Gemeine Eberesche","Laubholz (LH)",5,6,19.322848199999999,620,"1)",690,750,780,"3)",18,"3)"]
[null,"Weide","WD","Salix Sp.","-","Laubholz (LH)",5,6,19.322848199999999,520,"1)",290,553,630,"1)",10.199999999999999,"1)","In der Norm wird die Silberweide verkürzt als \"Weide\" definiert."]
[null,"Weide, Silber-","WD","Salix alba","Weißweide, Dorfweide","Laubholz (LH)",5,6,19.322848199999999,520,"1)",290,553,630,"1)",10.199999999999999,"1)"]
[null,"Zwetschkenbaum","ZW","Prunus domestica","Pflaume","Laubholz (LH)",5,6,19.322848199999999,690,"1)"," -",750," -","3)",13.9,"5)","Keine Angaben zur min. und max. Rohdichte, Schwindmaß als Schätzwert der Energieagentur (Mittelwert zwischen Feldbirne und Vogelkirsche)."]
[null,"Rinde NH","-","-","-","Rinde NH",6,6.2,20.3669431,445,"5)"," -"," -"," -","-",11.7,"5)","Rinde wurde vereinfachend wie Holz bewertet, Darrdichte und Schwindmaß wurden durch Gewichtung entsprechend der Nutzung der Baumarten gemäß österr. Waldinventur ermittelt. "]
[null,"Rinde LH","-","-","-","Rinde LH",7,6,19.322848199999999,640,"5)"," -"," -"," -","-",15.4,"5)","Rinde wurde vereinfachend wie Holz bewertet, Darrdichte und Schwindmaß wurden durch Gewichtung entsprechend der Nutzung der Baumarten gemäß österr. Waldinventur ermittelt. "]
[null,"Briketts, Holz-","-","-","-","Presslinge",8,6.2,20.3669431,700,"5)"," -"," -"," -","-",0,"5)","In Österreich werden in der Regel Briketts aus Fichtenspänen angeboten, im Ausnahmefall könnten auch Briketts aus anderen Holzarten angeboten werden."]
[null,"Briketts, Rinden-","-","-","-","Presslinge",8,6.2,20.3669431,700,"5)"," -"," -"," -","-",0,"5)"]
[null,"Pellets, Holz-","-","-","-","Presslinge",8,6.2,20.3669431,600,"5)"," -"," -"," -","-",0,"5)","In Österreich werden in der Regel Pellets aus Fichtenspänen angeboten, im Ausnahmefall könnten auch Pellets aus anderen Holzarten angeboten werden."]
[null,"Pellets, Rinden-","-","-","-","Presslinge",8,6.2,20.3669431,600,"5)","-","-","-","-",0,"5)"]
[]
[null,"1) ÖNORM B 3012 Holzarten - Kennwerte zu den Benennungen und Kurzzeichen der ÖNORM EN 13556"]
[null,"2) Kollmann, F. (1951): Technologie des Holzes und der Holzwerkstoffe, Springer Verlag."]
[null,"3) Wagenführ, R. und Scheiber, C. (1985): Holzatlas, 2. Auflage. VEB Fachbuchverlag Leipzig. || Wagenführ, R. (2004): Bildlexikon Holz, 2. verb. u. erw. Auflage, Fachbuchverlag Leipzig"]
[null,"4) Jonas, A. et al (2005): Energie aus Holz, Informationsbrochüre der Landwirtschaftskammer, 9. überarbeitete Auflage, Landeslandwirtschaftskammer NÖ"]
[null,"5) Österreichische Energieagentur"]
[null,"6) ÖNORM M 7132:2016-01"]

{"sheet":"hilf","index":2,"n_rows":1,"n_cols":1,"rows_kept":1,"cut":false,"hidden":true,"merged":[]}
[0]